fUST/lending_fUST_20250302
["ID","MTS","AMOUNT","RATE_DAILY","PERIOD"]
[355044981,1740880269627,-500.0,0.00025479,2]
[355044982,1740880269638,-500.0,0.00025479,2]
[355044983,1740880269647,-1159.88,0.00025479,2]
[355044984,1740880269657,-500.0,0.00025479,2]
[355044985,1740880269667,-500.0,0.00025479,2]
[355044986,1740880269676,-888.08,0.00025479,2]
[355044987,1740880269686,-504.46114064,0.00025479,2]
[355044988,1740880269696,-1285.98,0.00025479,2]
[355044989,1740880269706,-500.0,0.00025479,2]
[355044990,1740880269716,-500.0,0.00025479,2]
[355044991,1740880269726,-500.0,0.00025479,2]
[355044992,1740880269736,-500.0,0.00025479,2]
[355044993,1740880269745,-500.0,0.00025479,2]
[355044994,1740880269755,-827.35,0.00025479,2]
[355044995,1740880269764,-1210.31,0.00025479,2]
[355044996,1740880269774,-500.0,0.00025479,2]
[355044997,1740880269783,-505.38114939,0.00025479,2]
[355044998,1740880269793,-500.0,0.00025479,2]
[355044999,1740880269803,-500.0,0.00025479,2]
[355045000,1740880269814,-306.33070674,0.00025479,2]
[355045001,1740880269825,-542.8,0.00025479,2]
[355045002,1740880269835,-500.0,0.00025479,2]
[355045003,1740880269845,-1793.6,0.00025479,2]
[355045004,1740880269855,-500.0,0.00025479,2]
[355045005,1740880269865,-500.0,0.00025479,2]
[355045006,1740880269875,-711.67,0.00025479,2]
[355045007,1740880269885,-682.3,0.00025479,2]
[355045008,1740880269895,-500.0,0.00025479,2]
[355045009,1740880269905,-450.368911,0.00025479,7]
[355045010,1740880269915,-450.368911,0.00025479,7]
[355045011,1740880269925,-500.0,0.00025479,2]
[355045012,1740880269936,-346.732813,0.00025479,7]
[355045013,1740880269950,-450.368911,0.00025479,7]
[355045014,1740880269960,-500.0,0.00025479,2]
[355045015,1740880269970,-450.368911,0.00025479,7]
[355045016,1740880269980,-346.732813,0.00025479,7]
[355045017,1740880269989,-500.0,0.00025479,2]
[355045018,1740880269999,-758.85,0.00025479,2]
[355045019,1740880270009,-1461.59,0.00025479,2]
[355045020,1740880270020,-500.0,0.00025479,2]
[355045021,1740880270030,-346.732813,0.00025479,7]
[355045022,1740880270039,-346.732813,0.00025479,7]
[355045023,1740880270049,-500.0,0.00025479,2]
[355045024,1740880270058,-151.0,0.00025479,7]
[355045025,1740880270067,-500.0,0.00025479,2]
[355045026,1740880270077,-500.0,0.00025479,2]
[355045027,1740880270086,-151.0,0.00025479,7]
[355045028,1740880270096,-500.0,0.00025479,2]
[355045029,1740880270105,-500.0,0.00025479,2]
[355045030,1740880270116,-500.0,0.00025479,2]
[355045031,1740880270125,-500.0,0.00025479,2]
[355045032,1740880270135,-500.0,0.00025479,2]
[355045033,1740880270149,-1384.13,0.00025479,2]
[355045034,1740880270158,-500.0,0.00025479,2]
[355045035,1740880270168,-238.960978,0.00025479,7]
[355045036,1740880270178,-500.0,0.00025479,2]
[355045037,1740880270187,-500.0,0.00025479,2]
[355045038,1740880270197,-238.960978,0.00025479,7]
[355045039,1740880270206,-500.0,0.00025479,2]
[355045040,1740880270216,-500.0,0.00025479,2]
[355045041,1740880270225,-151.0,0.00025479,7]
[355045042,1740880270235,-674.15,0.00025479,2]
[355045043,1740880270244,-500.0,0.00025479,2]
[355045044,1740880270258,-523.72638745,0.00025479,2]
[355045045,1740880270267,-151.0,0.00025479,7]
[355045046,1740880270277,-151.0,0.00025479,7]
[355045047,1740880270286,-3195.55,0.00025479,2]
[355045048,1740880270295,-500.0,0.00025479,2]
[355045049,1740880270305,-500.0,0.00025479,2]
[355045050,1740880270314,-500.0,0.00025479,2]
[355045051,1740880270328,-1047.61,0.00025479,2]
[355045052,1740880270338,-1003.49230019,0.00025479,2]
[355045053,1740880270347,-500.0,0.00025479,2]
[355045054,1740880270356,-500.0,0.00025479,2]
[355045055,1740880270365,-614.99,0.00025479,2]
[355045056,1740880270375,-1198.93,0.00025479,2]
[355045057,1740880270384,-500.0,0.00025479,2]
[355045058,1740880270395,-553.7,0.00025479,2]
[355045059,1740880270405,-500.0,0.00025479,2]
[355045060,1740880270415,-591.09,0.00025479,2]
[355045061,1740880270424,-2175.84,0.00025479,2]
[355045062,1740880270434,-500.0,0.00025479,2]
[355045063,1740880270444,-2268.39,0.00025479,2]
[355045064,1740880270453,-500.0,0.00025479,2]
[355045065,1740880270463,-1913.802348,0.00025479,7]
[355045066,1740880270473,-524.51,0.00025479,2]
[355045067,1740880270483,-500.0,0.00025479,2]
[355045068,1740880270493,-470.53372496,0.00025479,2]
[355045069,1740880270502,-500.0,0.00025479,2]
[355045070,1740880270512,-500.0,0.00025479,2]
[355045071,1740880270522,-507.42046679,0.00025479,2]
[355045072,1740880270531,-500.0,0.00025479,2]
[355045073,1740880270541,-2076.54,0.00025479,2]
[355045074,1740880270550,-1420.81,0.00025479,2]
[355045075,1740880270560,-500.0,0.00025479,2]
[355045076,1740880270569,-500.0,0.00025479,2]
[355045077,1740880270578,-500.51,0.00025479,2]
[355045078,1740880270588,-521.17,0.00025479,2]
[355045079,1740880270597,-151.0,0.00025479,7]
[355045080,1740880270607,-928.01,0.00025479,2]
[355045081,1740880270617,-2706.92,0.00025479,2]
[355045082,1740880270627,-687.64,0.00025479,2]
[355045083,1740880270636,-151.0,0.00025479,7]
[355045084,1740880270647,-752.72,0.00025479,2]
[355045085,1740880270656,-500.0,0.00025479,2]
[355045086,1740880270666,-1471.54,0.00025479,2]
[355045087,1740880270675,-500.0,0.00025479,2]
[355045088,1740880270684,-354.895394,0.00025479,7]
[355045089,1740880270693,-500.0,0.00025479,2]
[355045090,1740880270703,-546.87,0.00025479,2]
[355045091,1740880270713,-500.0,0.00025479,2]
[355045092,1740880270722,-1392.2,0.00025479,2]
[355045093,1740880270732,-1014.95749413,0.00025479,2]
[355045094,1740880270741,-500.0,0.00025479,2]
[355045095,1740880270750,-500.0,0.00025479,2]
[355045096,1740880270759,-500.0,0.00025479,2]
[355045097,1740880270770,-500.0,0.00025479,2]
[355045098,1740880270779,-1223.59,0.00025479,2]
[355045099,1740880270788,-500.0,0.00025479,2]
[355045100,1740880270797,-500.0,0.00025479,2]
[355045101,1740880270807,-1131.99,0.00025479,2]
[355045102,1740880270817,-546.98,0.00025479,2]
[355045103,1740880270827,-500.0,0.00025479,2]
[355045104,1740880270836,-723.26,0.00025479,2]
[355045105,1740880270845,-1168.03,0.00025479,2]
[355045106,1740880270855,-164.677048,0.00025479,7]
[355045107,1740880270864,-548.67,0.00025479,2]
[355045108,1740880270874,-151.0,0.00025479,7]
[355045109,1740880270883,-505.31157383,0.00025479,2]
[355045110,1740880270892,-500.0,0.00025479,2]
[355045111,1740880270901,-225.839233,0.00025479,7]
[355045112,1740880270912,-151.0,0.00025479,7]
[355045113,1740880270921,-507.79677883,0.00025479,2]
[355045114,1740880270931,-500.0,0.00025479,2]
[355045115,1740880270941,-225.839233,0.00025479,7]
[355045116,1740880270950,-377.923398,0.00025479,7]
[355045117,1740880270959,-3044.28,0.00025479,2]
[355045118,1740880270969,-500.0,0.00025479,2]
[355045119,1740880270978,-583.22,0.00025479,2]
[355045120,1740880270988,-500.0,0.00025479,2]
[355045121,1740880270997,-500.0,0.00025479,2]
[355045122,1740880271007,-377.923398,0.00025479,7]
[355045123,1740880271016,-1031.55,0.00025479,2]
[355045124,1740880271025,-500.0,0.00025479,2]
[355045125,1740880271035,-500.0,0.00025479,2]
[355045126,1740880271045,-500.0,0.00025479,2]
[355045127,1740880271055,-500.0,0.00025479,2]
[355045128,1740880271064,-531.7,0.00025479,2]
[355045129,1740880271074,-1257.16,0.00025479,2]
[355045130,1740880271084,-500.0,0.00025479,2]
[355045131,1740880271093,-233.82780707,0.00025479,2]
[355045132,1740880271102,-500.0,0.00025479,2]
[355045133,1740880271112,-1834.8,0.00025479,2]
[355045134,1740880271121,-425.28373558,0.00025479,2]
[355045135,1740880271131,-510.39187576,0.00025479,2]
[355045136,1740880271142,-500.0,0.00025479,2]
[355045137,1740880271152,-500.0,0.00025479,2]
[355045138,1740880271163,-510.49552199,0.00025479,2]
[355045139,1740880271172,-500.0,0.00025479,2]
[355045140,1740880271185,-500.0,0.00025479,2]
[355045141,1740880271194,-930.89,0.00025479,2]
[355045142,1740880271204,-500.0,0.00025479,2]
[355045143,1740880271213,-919.06,0.00025479,2]
[355045144,1740880271224,-505.36893936,0.00025479,2]
[355045145,1740880271234,-1076.72,0.00025479,2]
[355045146,1740880271243,-500.0,0.00025479,2]
[355045147,1740880271253,-500.0,0.00025479,2]
[355045148,1740880271262,-500.0,0.00025479,2]
[355045149,1740880271272,-500.0,0.00025479,2]
[355045150,1740880271281,-500.0,0.00025479,2]
[355045151,1740880271291,-1069.63,0.00025479,2]
[355045152,1740880271300,-500.0,0.00025479,2]
[355045153,1740880271310,-602.99,0.00025479,2]
[355045154,1740880271319,-500.0,0.00025479,2]
[355045155,1740880271328,-500.0,0.00025479,2]
[355045156,1740880271338,-511.60835268,0.00025479,2]
[355045157,1740880271347,-1066.49,0.00025479,2]
[355045158,1740880271357,-516.89,0.00025479,2]
[355045159,1740880271366,-5283.31,0.00025479,2]
[355045160,1740880271376,-974.857858,0.00025479,7]
[355045161,1740880271386,-1004.76,0.00025479,2]
[355045162,1740880271395,-530.12960793,0.00025479,2]
[355045163,1740880271404,-500.0,0.00025479,2]
[355045164,1740880271414,-974.857858,0.00025479,7]
[355045165,1740880271423,-2661.42,0.00025479,2]
[355045166,1740880271432,-500.0,0.00025479,2]
[355045167,1740880271442,-500.0,0.00025479,2]
[355045168,1740880271451,-504.18159349,0.00025479,2]
[355045169,1740880271461,-500.0,0.00025479,2]
[355045170,1740880271470,-500.0,0.00025479,2]
[355045171,1740880271479,-617.73,0.00025479,2]
[355045172,1740880271489,-954.7,0.00025479,2]
[355045173,1740880271499,-791.56,0.00025479,2]
[355045174,1740880271509,-504.01785671,0.00025479,2]
[355045175,1740880271519,-377.71538,0.00025479,7]
[355045176,1740880271528,-500.0,0.00025479,2]
[355045177,1740880271538,-500.0,0.00025479,2]
[355045178,1740880271547,-500.0,0.00025479,2]
[355045179,1740880271556,-500.0,0.00025479,2]
[355045180,1740880271565,-377.71538,0.00025479,7]
[355045181,1740880271575,-1320.98,0.00025479,2]
[355045182,1740880271584,-500.0,0.00025479,2]
[355045183,1740880271593,-500.0,0.00025479,2]
[355045184,1740880271603,-151.0,0.00025479,7]
[355045185,1740880271613,-2209.87,0.00025479,2]
[355045186,1740880271622,-12127.47,0.00025479,2]
[355045187,1740880271631,-500.0,0.00025479,2]
[355045188,1740880271640,-500.03,0.00025479,2]
[355045189,1740880271650,-200.0,0.00025479,2]
[355045190,1740880271659,-500.0,0.00025479,2]
[355045191,1740880271669,-500.0,0.00025479,2]
[355045192,1740880271678,-421.65,0.00025479,2]
[355045193,1740880271687,-714.71,0.00025479,2]
[355045194,1740880271697,-500.0,0.00025479,2]
[355045195,1740880271707,-500.0,0.00025479,2]
[355045196,1740880271717,-500.0,0.00025479,2]
[355045197,1740880271726,-505.6573551,0.00025479,2]
[355045198,1740880271736,-912.13,0.00025479,2]
[355045199,1740880271746,-520.94732979,0.00025479,2]
[355045200,1740880271755,-866.0,0.00025479,2]
[355045201,1740880271764,-504.06641962,0.00025479,2]
[355045202,1740880271774,-1259.84,0.00025479,2]
[355045203,1740880271783,-500.0,0.00025479,2]
[355045204,1740880271793,-500.0,0.00025479,2]
[355045205,1740880271803,-500.0,0.00025479,2]
[355045206,1740880271815,-533.74,0.00025479,2]
[355045207,1740880271825,-2799.02,0.00025479,2]
[355045208,1740880271835,-3275.34,0.00025479,2]
[355045209,1740880271846,-1622.45,0.00025479,2]
[355045210,1740880271856,-500.0,0.00025479,2]
[355045211,1740880271866,-1389.7,0.00025479,2]
[355045212,1740880271876,-237257.16,0.00025479,2]
[355045213,1740880271885,-500.0,0.00025479,2]
[355045214,1740880271895,-528.90177319,0.00025479,2]
[355045215,1740880271905,-507.61044548,0.00025479,2]
[355045216,1740880271914,-500.0,0.00025479,2]
[355045217,1740880271924,-500.0,0.00025479,2]
[355045218,1740880271933,-2526.74,0.00025479,2]
[355045219,1740880271943,-703.97,0.00025479,2]
[355045220,1740880271953,-500.0,0.00025479,2]
[355045221,1740880271963,-251.64752683,0.00025479,2]
[355045222,1740880271972,-152.679051,0.00025479,7]
[355045223,1740880271982,-500.0,0.00025479,2]
[355045224,1740880271991,-500.0,0.00025479,2]
[355045225,1740880272001,-500.0,0.00025479,2]
[355045226,1740880272011,-500.0,0.00025479,2]
[355045227,1740880272021,-1718.1,0.00025479,2]
[355045228,1740880272031,-500.0,0.00025479,2]
[355045229,1740880272042,-866.27388,0.00025479,7]
[355045230,1740880272052,-500.0,0.00025479,2]
[355045231,1740880272061,-1801.15,0.00025479,2]
[355045232,1740880272071,-500.0,0.00025479,2]
[355045233,1740880272082,-500.0,0.00025479,2]
[355045234,1740880272092,-866.27388,0.00025479,7]
[355045235,1740880272102,-4941.89,0.00025479,2]
[355045236,1740880272111,-500.0,0.00025479,2]
[355045237,1740880272120,-860.85,0.00025479,2]
[355045238,1740880272130,-500.0,0.00025479,2]
[355045239,1740880272143,-500.0,0.00025479,2]
[355045240,1740880272152,-1102.8,0.00025479,2]
[355045241,1740880272162,-2226.47,0.00025479,2]
[355045242,1740880272171,-687.36,0.00025479,2]
[355045243,1740880272182,-500.0,0.00025479,2]
[355045244,1740880272192,-500.0,0.00025479,2]
[355045245,1740880272202,-2646.1,0.00025479,2]
[355045246,1740880272212,-218.40590156,0.00025479,2]
[355045247,1740880272222,-500.0,0.00025479,2]
[355045248,1740880272232,-500.0,0.00025479,2]
[355045249,1740880272242,-151.0,0.00025479,7]
[355045250,1740880272252,-1793.92,0.00025479,2]
[355045251,1740880272261,-500.0,0.00025479,2]
[355045252,1740880272271,-500.0,0.00025479,2]
[355045253,1740880272282,-500.0,0.00025479,2]
[355045254,1740880272462,-17596.01,0.00025479,2]
[355045255,1740880272474,-500.0,0.00025479,2]
[355045256,1740880272485,-694.6,0.00025479,2]
[355045257,1740880272494,-506.82,0.00025479,2]
[355045258,1740880272504,-500.0,0.00025479,2]
[355045259,1740880272514,-780.03,0.00025479,2]
[355045260,1740880272524,-500.0,0.00025479,2]
[355045261,1740880272533,-5992.25,0.00025479,2]
[355045262,1740880272543,-500.0,0.00025479,2]
[355045263,1740880272553,-2325.18,0.00025479,2]
[355045264,1740880272563,-1232.16,0.00025479,2]
[355045265,1740880272573,-151.0,0.00025479,7]
[355045266,1740880272583,-500.0,0.00025479,2]
[355045267,1740880272593,-151.0,0.00025479,7]
[355045268,1740880272604,-955.14,0.00025479,2]
[355045269,1740880272614,-14411.32,0.00025479,2]
[355045270,1740880272624,-500.0,0.00025479,2]
[355045271,1740880272634,-504.7,0.00025479,2]
[355045272,1740880272645,-500.0,0.00025479,2]
[355045273,1740880272655,-500.0,0.00025479,2]
[355045274,1740880272665,-151.0,0.00025479,7]
[355045275,1740880272674,-6090.67,0.00025479,2]
[355045276,1740880272684,-170.222849,0.00025479,7]
[355045277,1740880272694,-19624.61182001,0.00025479,7]
[355045278,1740880272704,-151.0,0.00025479,7]
[355045279,1740880272714,-500.0,0.00025479,2]
[355045280,1740880272724,-500.0,0.00025479,2]
[355045281,1740880272733,-8908.64,0.00025479,2]
[355045282,1740880272743,-1018.64,0.00025479,2]
[355045283,1740880272752,-667.57,0.00025479,2]
[355045284,1740880272762,-1331.8,0.00025479,2]
[355045285,1740880272771,-500.0,0.00025479,2]
[355045286,1740880272781,-151.0,0.00025479,7]
[355045287,1740880272791,-170.222849,0.00025479,7]
[355045288,1740880272800,-500.0,0.00025479,2]
[355045289,1740880272809,-500.0,0.00025479,2]
[355045290,1740880272819,-500.0,0.00025479,2]
[355045291,1740880272828,-151.0,0.00025479,7]
[355045292,1740880272838,-500.0,0.00025479,2]
[355045293,1740880272847,-896.5,0.00025479,2]
[355045294,1740880272857,-623.08,0.00025479,2]
[355045295,1740880272867,-500.0,0.00025479,2]
[355045296,1740880272877,-500.0,0.00025479,2]
[355045297,1740880272887,-1406.67,0.00025479,2]
[355045298,1740880272898,-500.0,0.00025479,2]
[355045299,1740880272908,-5376.44,0.00025479,2]
[355045300,1740880272918,-500.0,0.00025479,2]
[355045301,1740880272928,-500.0,0.00025479,2]
[355045302,1740880272937,-624.09032902,0.00025479,2]
[355045303,1740880272948,-1017.35,0.00025479,2]
[355045304,1740880272959,-546.12,0.00025479,2]
[355045305,1740880272969,-500.0,0.00025479,2]
[355045306,1740880272979,-151.0,0.00025479,7]
[355045307,1740880272989,-503.837812,0.00025479,2]
[355045308,1740880272999,-151.0,0.00025479,7]
[355045309,1740880273009,-500.0,0.00025479,2]
[355045310,1740880273019,-247.684685,0.00025479,7]
[355045311,1740880273029,-500.0,0.00025479,2]
[355045312,1740880273039,-500.0,0.00025479,2]
[355045313,1740880273048,-151.0,0.00025479,7]
[355045314,1740880273058,-500.0,0.00025479,2]
[355045315,1740880273068,-665.17,0.00025479,2]
[355045316,1740880273077,-500.0,0.00025479,2]
[355045317,1740880273087,-1330.22,0.00025479,2]
[355045318,1740880273096,-500.0,0.00025479,2]
[355045319,1740880273106,-1436.12,0.00025479,5]
[355045320,1740880273116,-2218.12,0.00025479,2]
[355045321,1740880273126,-500.0,0.00025479,2]
[355045322,1740880273135,-1585.715627,0.00025479,7]
[355045323,1740880273147,-8022.97,0.00025479,2]
[355045324,1740880273156,-502.87200447,0.00025479,2]
[355045325,1740880273166,-160.601991,0.00025479,7]
[355045326,1740880273175,-930.58,0.00025479,2]
[355045327,1740880273185,-673.75,0.00025479,2]
[355045328,1740880273194,-1207.39,0.00025479,2]
[355045329,1740880273203,-1585.715627,0.00025479,7]
[355045330,1740880273213,-1714.76,0.00025479,2]
[355045331,1740880273224,-500.0,0.00025479,2]
[355045332,1740880273233,-500.0,0.00025479,2]
[355045333,1740880273243,-500.0,0.00025479,2]
[355045334,1740880273252,-500.0,0.00025479,2]
[355045335,1740880273262,-1788.59,0.00025479,2]
[355045336,1740880273271,-500.0,0.00025479,2]
[355045337,1740880273280,-500.0,0.00025479,2]
[355045338,1740880273290,-2000.09,0.00025479,2]
[355045339,1740880273299,-1689.44,0.00025479,2]
[355045340,1740880273308,-912.93,0.00025479,2]
[355045341,1740880273318,-151.643207,0.00025479,7]
[355045342,1740880273327,-500.0,0.00025479,2]
[355045343,1740880273337,-756.89,0.00025479,2]
[355045344,1740880273347,-1040.97,0.00025479,2]
[355045345,1740880273358,-585.74,0.00025479,2]
[355045346,1740880273367,-500.0,0.00025479,2]
[355045347,1740880273377,-500.0,0.00025479,2]
[355045348,1740880273387,-504.8108603,0.00025479,2]
[355045349,1740880273396,-500.0,0.00025479,2]
[355045350,1740880273406,-1881.14,0.00025479,2]
[355045351,1740880273415,-500.0,0.00025479,2]
[355045352,1740880273424,-543.29,0.00025479,2]
[355045353,1740880273434,-508.66955602,0.00025479,2]
[355045354,1740880273444,-1185.09,0.00025479,2]
[355045355,1740880273453,-3783.09,0.00025479,2]
[355045356,1740880273463,-500.0,0.00025479,2]
[355045357,1740880273472,-500.0,0.00025479,2]
[355045358,1740880273482,-941.56,0.00025479,2]
[355045359,1740880273491,-500.0,0.00025479,2]
[355045360,1740880273502,-4102.21,0.00025479,2]
[355045361,1740880273511,-516.91541024,0.00025479,2]
[355045362,1740880273523,-500.0,0.00025479,2]
[355045363,1740880273532,-2818.22,0.00025479,2]
[355045364,1740880273542,-500.0,0.00025479,2]
[355045365,1740880273551,-500.0,0.00025479,2]
[355045366,1740880273562,-7351.2,0.00025479,2]
[355045367,1740880273572,-16797.07,0.00025479,2]
[355045368,1740880273581,-500.0,0.00025479,2]
[355045369,1740880273591,-500.0,0.00025479,2]
[355045370,1740880273600,-500.0,0.00025479,2]
[355045371,1740880273610,-500.0,0.00025479,2]
[355045372,1740880273621,-500.0,0.00025479,2]
[355045373,1740880273631,-500.0,0.00025479,2]
[355045374,1740880273640,-485.79315643,0.00025479,2]
[355045375,1740880273649,-500.0,0.00025479,2]
[355045376,1740880273658,-676.87,0.00025479,2]
[355045377,1740880273668,-2221.84,0.00025479,2]
[355045378,1740880273677,-1357.85,0.00025479,2]
[355045379,1740880273687,-500.0,0.00025479,2]
[355045380,1740880273696,-500.0,0.00025479,2]
[355045381,1740880273705,-1851.45,0.00025479,2]
[355045382,1740880273714,-1013.5,0.00025479,2]
[355045383,1740880273723,-500.0,0.00025479,2]
[355045384,1740880273733,-1362.5,0.00025479,2]
[355045385,1740880273743,-507.8117565,0.00025479,2]
[355045386,1740880273752,-253.2635271,0.00025479,2]
[355045387,1740880273762,-500.0,0.00025479,2]
[355045388,1740880273771,-326.4570672,0.00025479,2]
[355045389,1740880273781,-500.0,0.00025479,2]
[355045390,1740880273790,-500.0,0.00025479,2]
[355045391,1740880273800,-500.0,0.00025479,2]
[355045392,1740880273809,-500.0,0.00025479,2]
[355045393,1740880273818,-500.0,0.00025479,2]
[355045394,1740880273828,-500.0,0.00025479,2]
[355045395,1740880273837,-3865.73,0.00025479,2]
[355045396,1740880273846,-501.85146958,0.00025479,2]
[355045397,1740880273856,-271.71501426,0.00025479,2]
[355045398,1740880273865,-500.0,0.00025479,2]
[355045399,1740880273874,-500.0,0.00025479,2]
[355045400,1740880273884,-500.0,0.00025479,2]
[355045401,1740880273893,-500.0,0.00025479,2]
[355045402,1740880273902,-664.86,0.00025479,2]
[355045403,1740880273912,-509.0,0.00025479,2]
[355045404,1740880273922,-201.63844117,0.00025479,2]
[355045405,1740880273932,-500.0,0.00025479,2]
[355045406,1740880273943,-500.0,0.00025479,2]
[355045407,1740880273954,-500.0,0.00025479,2]
[355045408,1740880273964,-500.0,0.00025479,2]
[355045409,1740880273975,-330.767499,0.00025479,7]
[355045410,1740880273985,-500.0,0.00025479,2]
[355045411,1740880273995,-500.0,0.00025479,2]
[355045412,1740880274005,-1066.57,0.00025479,2]
[355045413,1740880274015,-571.98,0.00025479,2]
[355045414,1740880274024,-500.0,0.00025479,2]
[355045415,1740880274034,-330.767499,0.00025479,7]
[355045416,1740880274044,-500.0,0.00025479,2]
[355045417,1740880274054,-500.0,0.00025479,2]
[355045418,1740880274064,-500.0,0.00025479,2]
[355045419,1740880274073,-6933.61,0.00025479,2]
[355045420,1740880274083,-151.0,0.00025479,7]
[355045421,1740880274093,-151.0,0.00025479,7]
[355045422,1740880274103,-500.0,0.00025479,2]
[355045423,1740880274113,-696.3,0.00025479,2]
[355045424,1740880274124,-500.0,0.00025479,2]
[355045425,1740880274133,-500.0,0.00025479,2]
[355045426,1740880274146,-151.0,0.00025479,7]
[355045427,1740880274156,-503.90502587,0.00025479,2]
[355045428,1740880274166,-455.26537476,0.00025479,2]
[355045429,1740880274176,-2023.15,0.00025479,2]
[355045430,1740880274185,-500.0,0.00025479,2]
[355045431,1740880274198,-160.0,0.00025479,7]
[355045432,1740880274208,-509.1,0.00025479,2]
[355045433,1740880274218,-500.0,0.00025479,2]
[355045434,1740880274228,-500.0,0.00025479,2]
[355045435,1740880274238,-500.0,0.00025479,2]
[355045436,1740880274248,-500.0,0.00025479,2]
[355045437,1740880274259,-870.92,0.00025479,2]
[355045438,1740880274270,-4360.33,0.00025479,2]
[355045439,1740880274280,-1997.6,0.00025479,2]
[355045440,1740880274291,-1484.64,0.00025479,2]
[355045441,1740880274301,-500.0,0.000255,2]
[355045442,1740880274312,-2646.410629,0.00025506,4]
[355045443,1740880274322,-222.0,0.00025568,2]
[355045444,1740880274332,-180.0,0.00025568,2]
[355045445,1740880274343,-402.62,0.00025568,2]
[355045446,1740880274353,-500.0,0.000256,2]
[355045447,1740880274364,-500.0,0.000257,2]
[355045448,1740880274374,-250.0,0.000257,30]
[355045449,1740880274383,-200.0,0.000257,17]
[355045450,1740880274393,-165.4665294,0.00025752,2]
[355045451,1740880274404,-211.27331194,0.00025753,2]
[355045452,1740880274415,-501.63951767,0.00025753,2]
[355045453,1740880274426,-160.0,0.00025753,7]
[355045454,1740880274436,-500.0,0.00025753,2]
[355045455,1740880274447,-563.56,0.00025753,2]
[355045456,1740880274458,-500.0,0.00025753,2]
[355045457,1740880274468,-737.97,0.00025753,2]
[355045458,1740880274478,-152.285938,0.00025753,7]
[355045459,1740880274489,-500.0,0.00025753,2]
[355045460,1740880274499,-1525.29,0.00025753,2]
[355045461,1740880274510,-500.0,0.00025753,2]
[355045462,1740880274521,-500.0,0.00025753,2]
[355045463,1740880274531,-500.0,0.00025753,2]
[355045464,1740880274542,-500.0,0.00025753,2]
[355045465,1740880274553,-506.36848364,0.00025753,2]
[355045466,1740880274563,-885.61,0.00025753,2]
[355045467,1740880274573,-500.0,0.00025753,2]
[355045468,1740880274584,-500.0,0.00025753,2]
[355045469,1740880274594,-151.0,0.00025753,7]
[355045470,1740880274605,-500.0,0.00025753,2]
[355045471,1740880274616,-500.0,0.00025753,2]
[355045472,1740880274625,-500.0,0.00025753,2]
[355045473,1740880274635,-502.33811151,0.00025753,2]
[355045474,1740880274646,-500.0,0.00025753,2]
[355045475,1740880274656,-575.86,0.00025753,2]
[355045476,1740880274666,-562.4,0.00025753,2]
[355045477,1740880274676,-320.27103395,0.00025753,2]
[355045478,1740880274687,-500.0,0.00025753,2]
[355045479,1740880274697,-500.0,0.00025753,2]
[355045480,1740880274707,-500.0,0.00025753,2]